bitfinex/quotes_ETHUSD_20241108
["timestamp","ask_amount","ask_price","bid_price","bid_amount"]
[1731076349129,0.88067286,2939.4,2937.7,0.68531206]
[1731076349130,0.796,2939.0,2937.7,0.68531206]
[1731076349336,0.55,2939.3,2937.7,0.68531206]
[1731076349337,0.796,2938.8,2937.7,0.68531206]
[1731076349627,0.796,2938.6,2937.5,0.1385877]
[1731076349831,0.85287286,2938.5,2937.5,0.1385877]
[1731076352436,0.7794,2938.3,2937.0,0.625]
[1731076352750,0.7794,2938.1,2937.0,0.625]
[1731076352931,0.7794,2937.9,2937.0,0.625]
[1731076353139,0.83627286,2937.8,2937.0,0.625]
[1731076357537,0.84627286,2937.8,2937.0,0.625]
[1731076358079,0.83627286,2937.8,2937.0,0.625]
[1731076358233,0.8015,2937.6,2937.0,0.625]
[1731076358428,0.8015,2937.4,2937.0,0.625]
[1731076358629,0.05333924,2937.3,2937.0,0.625]
[1731076358829,0.8015,2937.2,2937.0,0.625]
[1731076360832,0.82003924,2937.1,2937.0,0.625]
[1731076361481,0.7667,2937.1,2937.0,0.625]
[1731076362035,0.7667,2937.1,2936.0,0.35509251]
[1731076362243,4.00461791,2937.3,2936.0,0.35509251]
[1731076362244,0.7667,2936.9,2936.0,0.35509251]
[1731076362469,0.7667,2936.7,2936.0,0.35509251]
[1731076362675,0.05333924,2936.6,2936.0,0.35509251]
[1731076364595,0.7667,2936.7,2936.0,0.35509251]
[1731076366167,0.05333924,2937.6,2936.4,4.00461791]
[1731076366168,0.7811,2937.5,2936.4,4.00461791]
[1731076366400,0.05333924,2937.4,2936.5,3.40046179]
[1731076367306,0.7811,2937.5,2936.6,0.06809602]
[1731076367482,0.7811,2937.5,2936.7,0.55]
[1731076367676,0.7844,2938.3,2937.2,4.00461791]
[1731076368021,0.7844,2938.3,2937.4,0.55]
[1731076368302,0.7844,2938.3,2937.8,3.0]
[1731076368515,0.7844,2938.3,2937.9,0.06806746]
[1731076368684,0.7844,2939.6,2938.0,0.55]
[1731076368879,0.7844,2939.3,2937.5,0.55]
[1731076369202,0.7844,2939.1,2937.8,0.69375335]
[1731076369403,0.83773924,2939.0,2937.9,0.06806567]
[1731076369620,0.7844,2939.0,2938.0,0.55]
[1731076369966,0.7844,2939.0,2938.1,0.06805572]
[1731076370286,0.7844,2939.0,2938.2,0.55]
[1731076370483,0.7844,2939.0,2938.0,0.55]
[1731076371506,0.05333924,2938.9,2938.0,0.50155534]
[1731076371726,0.7844,2938.8,2937.7,1.22036862]
[1731076371877,0.7844,2938.8,2937.8,3.0]
[1731076372081,0.7844,2938.8,2937.9,0.55]
[1731076372942,0.7781,2939.6,2938.2,3.0]
[1731076373221,0.7781,2939.4,2938.3,0.55]
[1731076373388,0.05333924,2939.3,2938.3,0.55]
[1731076374380,0.7781,2939.4,2938.3,0.55]
[1731076374582,0.05333924,2939.3,2938.3,0.55]
[1731076374844,4.00461791,2939.8,2937.8,3.0]
[1731076375000,0.7781,2939.6,2937.9,1.00046179]
[1731076375199,0.7781,2939.4,2937.9,3.55]
[1731076375388,3.40046179,2939.7,2937.9,0.55]
[1731076375389,0.83143924,2939.3,2937.9,0.55]
[1731076375887,0.83143924,2939.3,2937.8,1.51021781]
[1731076376086,0.83143924,2939.3,2937.3,4.00461791]
[1731076376509,0.84143924,2939.3,2937.3,4.00461791]
[1731076376720,0.7652,2938.9,2937.4,0.48071179]
[1731076376929,0.7517,2938.7,2937.2,0.8025]
[1731076377091,0.7517,2938.5,2937.2,1.47829194]
[1731076377436,0.7517,2938.3,2937.2,0.67579194]
[1731076377616,0.7517,2938.3,2936.8,4.82551791]
[1731076377617,0.7517,2938.1,2936.5,0.8209]
[1731076377786,0.05333924,2938.0,2936.5,0.8209]
[1731076377992,0.7517,2937.9,2936.6,0.52048293]
[1731076378186,0.8071,2937.7,2936.6,0.52048293]
[1731076378493,0.8071,2937.5,2936.0,4.00461791]
[1731076378688,0.05333924,2937.4,2936.1,0.06810272]
[1731076379169,0.05333924,2937.4,2936.0,4.00461791]
[1731076379518,0.8071,2937.3,2936.4,0.67898862]
[1731076379717,0.8071,2937.3,2936.5,0.06810061]
[1731076379917,0.8071,2937.3,2936.4,0.67898862]
[1731076380972,0.8071,2937.3,2936.5,0.06810058]
[1731076381478,0.06333924,2938.3,2936.1,3.0]
[1731076381479,0.7607,2937.1,2936.1,3.0]
[1731076381767,0.05333924,2937.0,2936.1,3.0]
[1731076381928,0.05333924,2937.0,2936.2,0.06810709]
[1731076382129,0.7513,2936.9,2936.2,0.69234486]
[1731076382664,0.7513,2936.9,2936.1,3.0]
[1731076383771,0.7513,2936.9,2936.0,4.35973239]
[1731076383978,0.7513,2936.9,2936.0,4.79570563]
[1731076384134,0.7513,2936.9,2936.1,0.6873762]
[1731076384877,0.7513,2936.9,2936.1,3.6873762]
[1731076385880,0.7513,2936.9,2936.1,3.7554829]
[1731076386046,0.7513,2936.9,2936.1,3.6873762]
[1731076386251,0.7513,2936.9,2936.1,4.20948261]
[1731076386888,0.87093924,2936.8,2936.1,3.0]
[1731076387175,0.87093924,2936.8,2936.0,0.35511448]
[1731076387484,0.87093924,2936.8,2935.4,0.74039227]
[1731076387646,0.87093924,2936.8,2935.4,0.67226604]
[1731076387836,0.87093924,2936.8,2935.5,4.00461791]
[1731076388091,0.8176,2936.8,2936.0,3.0]
[1731076389088,0.86713924,2936.7,2936.0,3.73878389]
[1731076389278,0.8138,2936.7,2936.0,3.73878389]
[1731076389778,0.05333924,2937.7,2936.4,3.0]
[1731076389779,0.754,2937.6,2936.4,3.0]
[1731076389985,0.05333924,2937.7,2936.4,3.0]
[1731076389986,0.754,2937.4,2936.4,3.0]
[1731076390184,0.754,2937.4,2936.5,0.49037722]
[1731076390411,0.754,2937.4,2936.7,4.00461791]
[1731076390703,0.754,2937.4,2936.8,3.0]
[1731076391258,0.754,2937.4,2936.8,3.69218357]
[1731076391563,0.754,2937.4,2936.8,3.0]
[1731076392500,0.754,2937.4,2936.7,0.67380159]
[1731076393104,0.754,2937.4,2936.8,0.06809723]
[1731076393260,0.754,2937.4,2936.8,3.0]
[1731076394761,0.754,2937.4,2936.7,4.6784195]
[1731076394762,0.754,2937.4,2935.9,4.00461791]
[1731076395073,0.79,2937.2,2936.3,4.00461791]
[1731076395263,0.79,2937.2,2936.4,0.40046179]
[1731076395463,0.79,2937.2,2936.7,4.00461791]
[1731076396079,0.7848,2938.0,2936.8,3.0]
[1731076396374,0.7848,2938.0,2936.5,0.8221]
[1731076396375,0.7848,2938.0,2937.1,4.00461791]
[1731076396595,0.7848,2938.0,2937.2,3.55]
[1731076396795,0.7848,2938.0,2937.7,3.0]
[1731076396973,0.05333924,2939.5,2937.7,3.06807292]
[1731076397179,0.7902,2939.4,2937.8,0.06806815]
[1731076397481,0.40046179,2939.7,2937.8,0.61806276]
[1731076397482,0.7781,2939.2,2937.8,0.61806276]
[1731076397681,0.05333924,2939.1,2937.8,0.55]
[1731076397893,0.05333924,2939.1,2938.0,0.55]
[1731076398103,0.05333924,2939.1,2938.1,0.06805848]
[1731076398471,0.05333924,2939.1,2938.0,0.55]
[1731076398794,0.05333924,2939.1,2937.7,3.0]
[1731076399009,0.7538,2939.0,2937.4,0.55]
[1731076399313,0.7538,2939.0,2938.5,3.55]
[1731076399531,0.7538,2940.3,2938.5,3.55]
[1731076399803,0.8095,2940.1,2938.5,3.55]
[1731076400007,0.86283924,2940.0,2938.5,3.55]
[1731076400215,0.86283924,2940.0,2938.7,0.55]
[1731076400417,0.86283924,2940.0,2938.8,4.00461791]
[1731076400568,0.86283924,2940.0,2938.9,3.55]
[1731076401091,0.8095,2940.0,2939.7,3.0]
[1731076401272,0.8095,2940.8,2939.8,0.06802149]
[1731076401481,0.8095,2940.8,2939.7,3.0]
[1731076401709,0.8095,2940.8,2940.0,4.00461791]
[1731076402015,0.8095,2940.8,2940.1,3.0]
[1731076402317,0.8095,2940.8,2939.8,0.55]
[1731076402512,0.8095,2940.8,2939.7,3.55]
[1731076403029,0.8095,2940.8,2939.9,0.55]
[1731076403171,0.8095,2940.8,2940.1,3.0]
[1731076404021,0.8095,2940.8,2940.2,0.06801158]
[1731076404370,0.7816,2942.1,2940.5,3.55]
[1731076404575,0.05333924,2942.0,2941.0,3.0]
[1731076404823,0.7816,2941.9,2940.6,3.0]
[1731076405021,0.7816,2941.7,2940.6,3.0]
[1731076405173,0.7816,2941.7,2940.7,0.55]
[1731076405589,0.7816,2941.7,2940.3,0.55]
[1731076405833,0.85853924,2941.6,2940.3,0.55]
[1731076406333,0.85853924,2941.6,2940.5,3.0]
[1731076406628,0.85853924,2941.6,2940.2,3.06800368]
[1731076406836,0.85853924,2941.6,2940.2,3.0]
[1731076407294,0.85853924,2941.6,2940.3,0.06801129]
[1731076407502,0.85853924,2941.6,2940.2,3.0]
[1731076408122,0.85853924,2941.6,2940.4,0.55]
[1731076408327,0.85853924,2941.6,2940.3,0.55]
[1731076409165,0.8052,2941.6,2940.6,3.55]
[1731076410188,0.8052,2941.6,2940.6,3.0]
[1731076410529,0.8052,2941.6,2940.2,0.55]
[1731076410735,0.87363924,2941.5,2939.7,4.00461791]
[1731076410890,0.7539,2941.3,2939.8,0.40046179]
[1731076411084,0.7539,2941.1,2939.8,0.40046179]
[1731076411388,0.7539,2940.9,2939.8,0.40046179]
[1731076411600,0.7539,2940.7,2939.3,4.00461791]
[1731076411797,0.80723924,2940.6,2939.3,4.00461791]
[1731076412000,0.80723924,2940.6,2939.1,0.69337609]
[1731076412232,0.7639,2940.5,2938.3,0.44087859]
[1731076412434,0.7539,2940.2,2938.3,0.52034965]
[1731076412588,0.83383924,2940.1,2938.3,0.52034965]
[1731076413003,0.83383924,2940.1,2938.3,0.93297491]
[1731076413718,0.83383924,2940.1,2938.4,0.06805386]
[1731076415005,0.83383924,2940.1,2938.4,0.55]
[1731076415252,0.83383924,2940.1,2938.6,3.0]
[1731076415418,0.83383924,2940.1,2938.7,0.06804826]
[1731076415929,0.05333924,2940.0,2938.8,0.55]
[1731076416138,0.05333924,2940.0,2938.9,0.06804822]
[1731076416691,0.05333924,2940.0,2938.6,3.3696203]
[1731076416692,0.7856,2939.9,2938.7,0.55]
[1731076416861,0.05333924,2939.8,2938.8,0.06803897]
[1731076417158,0.06766926,2939.8,2938.8,0.39876593]
[1731076417359,0.7856,2939.9,2939.0,3.55]
[1731076417709,0.7856,2939.9,2939.3,4.00461791]
[1731076417944,0.7856,2939.9,2939.4,3.0680302]
[1731076418144,0.7856,2939.9,2939.4,3.55923422]
[1731076418354,0.7856,2939.9,2939.4,3.0]
[1731076418570,0.7856,2939.9,2939.0,3.0]
[1731076418732,0.7856,2939.9,2939.1,0.06803736]
[1731076418949,0.7856,2939.9,2939.0,3.0]
[1731076419437,0.7856,2939.9,2939.1,0.06803872]
[1731076419647,0.7856,2939.9,2939.2,3.0]
[1731076419955,0.7856,2939.9,2939.4,3.0]
[1731076420540,0.7856,2939.9,2939.2,3.0]
[1731076421836,0.7856,2939.9,2939.1,0.55]
[1731076422859,0.7856,2939.9,2939.0,3.0]
[1731076423160,0.7856,2939.9,2938.5,4.00461791]
[1731076423161,0.7985,2939.7,2938.5,0.68719992]
[1731076423357,3.01,2940.6,2938.1,4.00461791]
[1731076423358,0.86616926,2939.6,2938.1,4.00461791]
[1731076423739,0.86616926,2939.6,2938.1,4.41724317]
[1731076423942,0.86616926,2939.6,2938.2,0.6961767]
[1731076424642,0.86616926,2939.6,2938.2,3.6961767]
[1731076425043,0.86616926,2939.6,2938.2,0.6961767]
[1731076425236,0.86616926,2939.6,2938.3,0.06805051]
[1731076425437,0.86616926,2939.6,2938.2,1.10880196]
[1731076425672,0.86616926,2939.6,2938.3,0.51134199]
[1731076425834,0.86616926,2939.6,2938.5,4.00461791]
[1731076426041,0.7985,2939.6,2938.5,4.00461791]
[1731076426240,0.7985,2939.6,2938.6,3.0]
[1731076428183,0.7985,2939.6,2939.0,3.55]
[1731076428364,0.7985,2939.6,2939.1,0.37862796]
[1731076428565,0.7985,2939.6,2939.2,35.0]
[1731076428743,0.7985,2939.6,2939.3,7.07265128]
[1731076429337,0.7985,2939.6,2939.3,7.00461791]
[1731076429541,0.7985,2939.6,2939.5,3.0]
[1731076429738,0.7985,2939.6,2939.5,3.51134199]
[1731076429937,0.7985,2939.6,2939.5,0.51134199]
[1731076430342,0.7985,2939.6,2938.5,4.00461791]
[1731076430748,0.87146926,2939.5,2938.5,4.00461791]
[1731076430949,0.87146926,2939.5,2938.3,0.68252122]
[1731076431191,0.87146926,2939.5,2938.2,35.0]
[1731076432183,0.87146926,2939.5,2938.3,0.55]
[1731076432383,0.87146926,2939.5,2938.5,0.55]
[1731076433540,0.87146926,2939.5,2938.5,0.61805467]
[1731076433764,0.87146926,2939.5,2938.3,0.55]
[1731076434784,0.87146926,2939.5,2938.3,3.55]
[1731076436290,0.87146926,2939.5,2938.3,2.735487]
[1731076439393,0.87146926,2939.5,2938.6,4.00461791]
[1731076439684,0.87146926,2939.5,2938.7,38.06804694]
[1731076439994,0.87146926,2939.5,2939.1,3.0]
[1731076439995,0.8038,2939.5,2939.1,3.0]
[1731076440156,0.06766926,2940.4,2939.5,3.0]
[1731076440157,0.8187,2940.3,2939.5,3.0]
[1731076440497,0.06766926,2940.2,2939.5,3.0]
[1731076440659,0.8187,2940.3,2939.5,3.0]
[1731076441171,0.8187,2940.3,2939.9,3.0]
[1731076441482,0.8187,2940.3,2940.0,0.06801931]
[1731076441687,0.8187,2940.3,2939.9,3.0]
[1731076441848,0.8187,2940.3,2940.0,0.06801965]
[1731076442247,0.8187,2940.3,2939.9,3.0]
[1731076443450,0.8187,2940.3,2939.4,0.68842156]
[1731076443451,0.8187,2940.3,2939.5,3.0]
[1731076444761,0.8187,2940.3,2939.5,3.06803019]
[1731076444973,0.8187,2940.3,2939.5,3.0]
[1731076445188,0.593048,2940.3,2939.5,3.0]
[1731076446195,0.593048,2940.3,2939.5,3.06803065]
[1731076446673,0.06766926,2940.2,2938.6,0.7868]
[1731076446851,0.06766926,2940.6,2938.6,4.00461791]
[1731076447050,0.76913105,2940.6,2938.6,4.00461791]
[1731076447484,0.76913105,2940.6,2938.8,0.67790963]
[1731076447661,0.76913105,2940.6,2938.6,4.00461791]
[1731076447862,0.76913105,2940.6,2938.7,0.75887178]
[1731076448081,0.37891311,2940.5,2938.8,0.47634897]
[1731076448284,0.01,2940.3,2938.7,0.69082479]
[1731076448466,0.7754,2940.1,2938.6,4.00461791]
[1731076448654,0.7754,2939.9,2938.6,4.00461791]
[1731076448855,0.83386926,2939.8,2938.6,4.00461791]
[1731076449568,0.83386926,2939.8,2938.7,3.0]
[1731076450196,0.83386926,2939.8,2938.6,0.68810581]
[1731076450355,0.83386926,2939.8,2938.6,4.69272372]
[1731076450563,0.7662,2939.8,2939.0,4.00461791]
[1731076450761,0.7662,2939.8,2939.1,0.06803651]
[1731076450968,0.7662,2939.8,2939.0,4.00461791]
[1731076451605,0.7662,2939.8,2939.3,3.0]
[1731076451903,0.7662,2939.8,2939.4,0.06803258]
[1731076452058,0.7662,2939.8,2939.5,0.30680326]
[1731076453361,0.07766926,2941.0,2939.5,3.30680326]
[1731076453362,0.7702,2940.9,2939.5,3.30680326]
[1731076453608,0.83786926,2940.8,2939.5,3.30680326]
[1731076453968,0.83786926,2940.8,2939.5,3.0]
[1731076454174,0.83786926,2940.8,2939.9,3.0]
[1731076454396,0.83786926,2940.8,2940.0,0.06801861]
[1731076455126,0.7702,2940.8,2940.1,0.55]
[1731076455298,0.7528,2941.8,2940.7,3.0]
[1731076455617,0.06766926,2941.7,2940.7,3.0]
[1731076456121,0.06766926,2941.7,2940.8,0.0679996]
[1731076456358,0.772,2942.2,2941.5,3.0]
[1731076456628,0.772,2942.2,2941.6,0.06797918]
[1731076456974,0.772,2942.2,2941.8,4.00461791]
[1731076457172,0.7862,2943.5,2941.9,3.06797639]
[1731076457376,0.85386926,2943.5,2941.9,3.0]
[1731076457983,0.8187,2943.4,2941.9,3.0]
[1731076458191,0.8187,2943.1,2941.1,3.55]
[1731076458532,0.8087,2942.9,2941.2,35.0]
[1731076458734,0.06766926,2942.8,2941.3,3.0]
[1731076459034,0.8087,2942.7,2941.5,3.0]
[1731076459342,0.06766926,2942.6,2941.6,0.06797914]
[1731076459679,0.7567,2942.5,2941.2,0.55]
[1731076459883,0.06766926,2942.4,2941.2,0.55]
[1731076460187,0.06766926,2942.4,2941.4,3.0]
[1731076460585,0.06766926,2942.4,2941.2,0.55]
[1731076460916,0.06766926,2942.4,2941.1,3.0]
[1731076460917,0.8005,2942.3,2941.1,3.0]
[1731076461125,0.06766926,2942.2,2941.1,3.0]
[1731076461486,0.06766926,2942.2,2941.2,0.06798789]
[1731076461685,0.06766926,2942.2,2941.1,3.0]
[1731076462387,0.7816,2942.1,2940.9,0.55]
[1731076462733,0.06766926,2942.0,2940.9,0.55]
[1731076463025,0.7768,2941.8,2939.7,4.82891791]
[1731076463220,0.84446926,2941.7,2939.7,5.51518542]
[1731076463433,0.7768,2941.3,2939.3,4.82891791]
[1731076463608,0.8164,2941.1,2939.3,4.00461791]
[1731076463922,0.88406926,2941.0,2938.9,4.82311791]
[1731076464430,0.7507,2940.8,2939.0,0.88996995]
[1731076464596,0.7507,2940.5,2938.5,4.00461791]
[1731076464784,0.7507,2940.3,2938.4,1.04284527]
[1731076464986,0.7507,2940.1,2938.4,1.04284527]
[1731076465311,0.81836926,2940.0,2938.1,4.69061366]
[1731076465519,0.81836926,2940.0,2938.1,4.00461791]
[1731076465741,0.81836926,2940.0,2938.2,35.46851801]
[1731076465918,0.81836926,2940.0,2938.5,4.00461791]
[1731076466121,0.81836926,2940.0,2938.2,35.40046179]
[1731076466347,0.8022,2939.8,2938.2,35.0]
[1731076466654,0.7517,2939.6,2938.2,35.0]
[1731076466854,0.7517,2939.4,2938.2,35.0]
[1731076467057,0.7517,2939.4,2938.1,4.00461791]
[1731076467058,0.06766926,2939.3,2938.1,4.00461791]
[1731076467254,0.06766926,2939.3,2938.2,0.06805827]
[1731076467549,0.06766926,2939.3,2938.2,0.47532589]
[1731076467920,0.06766926,2939.3,2938.2,0.40726762]
[1731076468131,0.06766926,2939.3,2938.3,0.06805823]
[1731076468323,0.7988,2939.2,2937.7,4.00461791]
[1731076468642,0.7988,2939.0,2937.8,35.0]
[1731076468967,0.7988,2938.8,2937.8,35.0]
[1731076469141,0.06766926,2938.7,2937.4,1.12928918]
[1731076469488,0.7988,2938.6,2937.4,0.44020859]
[1731076469635,0.06766926,2938.5,2937.3,4.00461791]
[1731076469829,0.7988,2938.4,2937.3,4.00461791]
[1731076470032,0.06766926,2938.3,2937.2,0.35518474]
[1731076470233,0.7503,2938.2,2937.2,0.35518474]
[1731076470550,0.7503,2938.0,2937.2,0.35518474]
[1731076470736,0.7503,2937.8,2936.5,4.4448265]
[1731076470939,0.06766926,2937.7,2936.5,39.4448265]
[1731076471340,0.06766926,2937.7,2936.5,35.44020859]
[1731076471660,0.06766926,2937.7,2936.5,0.44020859]
[1731076473049,0.7858,2937.6,2936.4,35.0]
[1731076473251,0.06766926,2937.5,2936.4,35.0]
[1731076473795,0.06766926,2937.5,2936.5,0.0681014]
[1731076474083,0.7858,2937.6,2936.7,4.50374238]
[1731076474248,0.7858,2937.6,2936.9,0.55]
[1731076474443,0.7858,2937.6,2936.9,3.55]
[1731076474654,0.7858,2937.6,2937.0,0.06808676]
[1731076475052,0.7858,2937.6,2937.1,35.0]
[1731076475257,0.7858,2937.6,2937.1,33.1]
[1731076476357,0.84266926,2938.9,2937.3,0.55]
[1731076476879,0.84266926,2938.9,2937.7,4.50374238]
[1731076477089,0.84266926,2938.9,2937.8,3.61806494]
[1731076477267,0.84266926,2938.9,2937.8,3.55]
[1731076477443,0.775,2938.9,2937.8,3.55]
[1731076477648,0.775,2938.9,2937.8,4.23815799]
[1731076478144,0.775,2938.9,2937.4,3.44437526]
[1731076478345,0.81996926,2938.8,2937.5,0.55]
[1731076479166,0.81996926,2938.8,2937.6,0.06807084]
[1731076479397,0.7523,2938.8,2937.8,3.0]
[1731076479684,0.7523,2938.8,2937.9,0.55]
[1731076479976,0.7523,2938.8,2937.8,3.0]
[1731076480777,0.7523,2938.8,2937.9,0.61806454]
[1731076481172,0.72481337,2938.8,2937.8,3.68752954]
[1731076481509,0.72481337,2938.8,2937.9,0.06806174]
[1731076481679,0.72481337,2938.8,2938.0,0.37555913]
[1731076482276,0.72481337,2938.8,2937.4,3.0]
[1731076482703,0.72481337,2938.8,2936.7,0.02]
[1731076482704,0.06766926,2938.7,2936.9,4.50374238]
[1731076482889,0.01,2939.1,2937.3,0.66990756]
[1731076483211,0.01,2939.1,2937.4,0.06807491]
[1731076483423,0.55,2939.0,2937.4,0.06807491]
[1731076483728,0.01,2939.6,2937.3,5.17364994]
[1731076483729,0.06766926,2938.9,2937.3,5.17364994]
[1731076483888,0.5190435,2939.5,2937.8,3.0]
[1731076484084,0.06766926,2939.5,2937.8,3.0]
[1731076484443,0.8029,2939.3,2937.5,0.55]
[1731076484598,0.8029,2939.1,2937.5,0.55]
[1731076484915,0.06766926,2939.0,2937.8,3.0]
[1731076485225,0.8029,2939.1,2938.3,0.55]
[1731076485517,0.8106,2939.9,2938.4,0.06804749]
[1731076485717,0.8106,2938.5,2936.5,4.50374238]
[1731076485878,0.87826926,2938.4,2936.5,4.50374238]
[1731076486399,0.87826926,2938.4,2937.0,5.27624238]
[1731076486608,0.87826926,2938.4,2937.1,0.52762424]
[1731076486940,0.87826926,2938.4,2936.7,0.68365135]
[1731076487581,0.786,2938.2,2936.7,0.68365135]
[1731076487923,0.786,2938.0,2936.7,0.68365135]
[1731076488107,0.89206926,2937.9,2936.7,0.68365135]
[1731076488334,0.89206926,2937.9,2936.1,0.7906]
[1731076488902,0.89206926,2937.9,2936.2,0.55]
[1731076489235,0.89206926,2937.9,2936.6,0.6832298]
[1731076493015,0.89206926,2937.9,2936.7,0.06809632]
[1731076493425,0.89206926,2937.9,2936.6,0.6832298]
[1731076494918,0.89206926,2937.9,2936.1,0.06810079]
[1731076495113,0.89206926,2937.9,2936.4,0.67719321]
[1731076495312,0.89206926,2937.9,2936.5,0.4680729]
[1731076495944,0.89206926,2937.9,2936.8,3.55]
[1731076495945,0.8244,2937.9,2936.8,3.55]
[1731076496158,0.8244,2937.9,2937.2,3.55]
[1731076496348,0.7607,2939.1,2937.4,0.66487442]
[1731076496526,4.00353582,2939.3,2937.4,0.66487442]
[1731076496527,0.82836926,2939.0,2937.4,0.66487442]
[1731076496710,0.82836926,2939.0,2937.6,3.55]
[1731076496915,0.82836926,2939.0,2937.7,0.42189705]
[1731076498642,0.82836926,2939.0,2937.5,0.55]
[1731076499459,0.82836926,2939.0,2937.4,0.66487442]
[1731076499698,0.82836926,2939.0,2937.6,0.06806466]
[1731076499999,0.82836926,2939.0,2937.4,0.66487442]
[1731076500910,0.8284,2938.7,2937.4,0.66487442]
[1731076501080,0.01,2938.8,2936.4,8.2115]
[1731076501081,0.8284,2938.4,2936.4,8.2115]
[1731076501284,0.8284,2938.2,2936.7,4.00353582]
[1731076501604,0.8284,2938.2,2937.2,0.8015]
[1731076502303,0.8284,2938.2,2937.2,3.8015]
[1731076502507,0.8284,2938.2,2937.3,0.55]
[1731076502720,0.8284,2938.2,2937.4,0.43515]
[1731076503007,0.8284,2938.2,2936.8,0.01]
[1731076503008,0.8284,2938.2,2937.5,0.67819899]
[1731076503332,0.8284,2938.2,2936.8,3.0]
[1731076503628,0.8284,2938.2,2937.2,0.66568258]
[1731076503996,0.8284,2938.2,2936.8,3.0]
[1731076504195,0.89936926,2938.1,2936.9,0.06808453]
[1731076504524,0.89936926,2938.1,2937.0,0.6841851]
[1731076505344,0.89936926,2938.1,2935.9,5.18449277]
[1731076505345,0.8027,2938.0,2935.9,5.18449277]
[1731076505492,0.8027,2937.8,2935.9,5.18449277]
[1731076505691,0.8224,2937.6,2936.4,0.35548505]
[1731076505898,0.89006926,2937.5,2936.4,0.67894725]
[1731076506625,0.89006926,2937.5,2936.2,0.35553092]
[1731076507199,0.55,2937.2,2936.2,0.35553092]
[1731076507425,0.8224,2936.7,2936.2,0.35553092]
[1731076507579,0.8224,2936.7,2934.7,4.79553582]
[1731076507580,0.55,2936.4,2934.7,4.00353582]
[1731076507786,0.55,2936.4,2934.8,0.41421235]
[1731076507787,0.89006926,2936.3,2934.8,0.41421235]
[1731076508034,0.89006926,2936.3,2934.7,4.68769905]
[1731076508186,0.89006926,2936.3,2935.6,4.00353582]
[1731076508187,0.8224,2936.3,2935.6,4.00353582]
[1731076508387,0.8224,2936.3,2935.1,0.792]
[1731076508388,0.8247,2936.8,2936.0,4.00353582]
[1731076508926,0.8247,2936.8,2936.1,3.0]
[1731076510317,0.8204,2937.8,2936.5,3.0]
[1731076510524,0.8204,2937.8,2937.2,4.00353582]
[1731076510845,0.8204,2937.8,2936.7,0.77]
[1731076510993,0.8204,2937.8,2937.2,3.0]
[1731076511194,0.8204,2937.8,2937.3,0.48961637]
[1731076511397,0.8204,2939.1,2937.3,0.48961637]
[1731076511643,0.7686,2938.9,2937.9,4.00353582]
[1731076511954,0.7686,2939.8,2938.7,4.00353582]
[1731076512102,0.06766926,2939.7,2938.8,3.0]
[1731076512305,0.7686,2939.8,2938.8,3.40035358]
[1731076512734,0.7686,2939.8,2938.8,3.0]
[1731076512921,0.06766926,2939.7,2938.4,3.0]
[1731076513322,0.06766926,2939.7,2938.5,0.55]
[1731076513622,0.06766926,2939.7,2938.8,3.0]
[1731076513827,0.06766926,2939.7,2938.5,0.61804624]
[1731076513828,0.7686,2939.8,2939.1,4.00353582]
[1731076514031,0.7686,2939.8,2939.2,3.40035358]
[1731076515033,0.7686,2939.8,2939.2,3.0]
[1731076515421,0.7686,2939.8,2938.8,3.0]
[1731076515623,0.7686,2939.8,2938.5,0.55]
[1731076515947,0.7686,2939.8,2938.6,0.67852186]
[1731076516629,0.06766926,2939.7,2938.4,3.0]
[1731076519631,0.7686,2939.8,2938.8,3.55]
[1731076520074,0.7686,2939.8,2938.4,3.0]
[1731076520449,0.06766926,2939.7,2938.4,3.0]
[1731076520657,0.8067,2939.6,2937.9,4.49628226]
[1731076520986,0.87436926,2939.5,2937.5,4.49628226]
[1731076522181,0.7789,2939.3,2937.5,4.49628226]
[1731076522386,0.55,2939.4,2937.2,0.68863049]
[1731076522387,0.7789,2939.1,2937.2,0.68863049]
[1731076522556,0.84656926,2939.0,2937.2,0.68863049]
[1731076523081,1.3289,2938.9,2937.2,0.68863049]
[1731076523284,0.55,2938.6,2936.7,4.49628226]
[1731076523438,0.89466926,2938.5,2936.8,0.44962823]
[1731076523640,0.89466926,2938.5,2936.9,0.06808428]
[1731076523835,0.89466926,2938.5,2936.7,4.82240796]
[1731076524691,0.89466926,2938.5,2937.1,4.49628226]
[1731076525058,0.827,2938.5,2937.2,0.55]
[1731076525357,0.827,2938.5,2937.6,3.0]
[1731076525557,0.827,2938.5,2937.9,4.49628226]
[1731076525764,0.827,2938.5,2938.0,3.0]
[1731076525968,0.7858,2940.1,2938.0,3.0]
[1731076526171,0.86426926,2940.0,2938.0,3.0]
[1731076526373,0.87426926,2940.0,2938.0,3.0]
[1731076526973,0.87426926,2940.0,2937.6,3.0]
[1731076526974,0.01,2939.8,2937.6,3.0]
[1731076527175,0.7634,2939.5,2937.6,3.0]
[1731076527406,0.55,2939.6,2937.6,3.0]
[1731076527407,0.7634,2939.3,2937.6,3.0]
[1731076527560,0.7634,2939.1,2937.6,3.0]
[1731076527758,0.7634,2938.9,2937.6,3.0]
[1731076527958,0.06766926,2938.8,2937.6,3.0]
[1731076528398,0.06766926,2938.8,2937.6,3.69608883]
[1731076529486,0.06766926,2938.8,2937.7,0.06806492]
[1731076529673,0.06766926,2938.8,2937.8,0.06806491]
[1731076530288,0.06766926,2938.8,2937.6,3.69608883]
[1731076530501,0.7634,2938.9,2938.0,3.55]
[1731076530705,0.7634,2938.9,2938.4,3.0]
[1731076530879,0.06766926,2940.4,2938.8,3.55]
[1731076530880,0.828,2940.3,2938.8,3.55]
[1731076531092,0.35534872,2940.5,2938.8,3.55]
[1731076531093,0.89566926,2940.2,2938.8,3.55]
[1731076531267,0.89566926,2940.2,2938.8,3.0]